bitfinex/quotes_BTCUSD_20240620
["timestamp","ask_amount","ask_price","bid_price","bid_amount"]
[1718883756159,0.6482242,66365.0,66364.0,0.010504]
[1718883758177,0.6482242,66365.0,66364.0,0.01043398]
[1718883758178,0.6282242,66365.0,66364.0,0.01043398]
[1718883758424,0.6482242,66365.0,66364.0,0.01043398]
[1718883761566,0.82796001,66365.0,66364.0,0.01043398]
[1718883762134,5.63144301,66365.0,66364.0,0.0086733]
[1718883762544,5.98754301,66365.0,66364.0,0.0086733]
[1718883762860,5.97954301,66365.0,66364.0,0.0086733]
[1718883762975,6.0173586,66365.0,66364.0,0.0086733]
[1718883763175,6.0279586,66365.0,66364.0,0.0076733]
[1718883763415,6.0419586,66365.0,66364.0,0.001]
[1718883763618,6.50283927,66365.0,66364.0,0.001]
[1718883763819,6.40283927,66365.0,66364.0,0.001]
[1718883764171,6.33628513,66365.0,66364.0,0.001]
[1718883764757,6.28628513,66365.0,66364.0,0.001]
[1718883765514,6.30028513,66365.0,66364.0,0.001]
[1718883766919,1.49680213,66365.0,66364.0,0.001]
[1718883767319,6.30028513,66365.0,66364.0,0.001]
[1718883767512,6.30028513,66365.0,66351.0,0.38945389]
[1718883767513,0.02,66355.0,66351.0,0.38945389]
[1718883767785,0.0722,66352.0,66351.0,0.38945389]
[1718883767919,0.0722,66352.0,66350.0,0.0101048]
[1718883768256,0.0722,66352.0,66350.0,0.0051048]
[1718883768864,0.615,66351.0,66350.0,0.0051048]
[1718883769071,0.715,66351.0,66350.0,0.0051048]
[1718883769289,0.735,66351.0,66350.0,0.0051048]
[1718883769495,0.715,66351.0,66350.0,0.0051048]
[1718883769738,0.735,66351.0,66350.0,0.0051048]
[1718883770297,0.737,66351.0,66350.0,0.0051048]
[1718883770477,0.7916096,66351.0,66350.0,0.0051048]
[1718883770685,0.746,66351.0,66350.0,0.0051048]
[1718883770887,0.89656112,66351.0,66350.0,0.0051048]
[1718883771092,0.95167937,66351.0,66350.0,0.0051048]
[1718883771293,1.56749833,66351.0,66350.0,1e-08]
[1718883771497,1.72005247,66351.0,66350.0,1e-08]
[1718883771697,1.82005247,66351.0,66350.0,1e-08]
[1718883771897,1.10505247,66351.0,66350.0,1e-08]
[1718883772248,0.91826112,66351.0,66350.0,1e-08]
[1718883772404,0.91826112,66351.0,66328.0,0.324504]
[1718883772405,0.07,66339.0,66328.0,0.324504]
[1718883772602,0.0722,66333.0,66328.0,0.324504]
[1718883772884,0.02,66338.0,66328.0,0.324504]
[1718883772885,3.214,66338.0,66332.0,0.271204]
[1718883773111,0.1,66338.0,66333.0,0.315]
[1718883773317,0.1,66338.0,66333.0,0.5767]
[1718883773318,0.0722,66334.0,66333.0,0.5767]
[1718883774530,0.0792,66334.0,66333.0,0.5767]
[1718883775806,0.0722,66334.0,66333.0,0.5767]
[1718883776206,0.0772,66334.0,66333.0,0.59329056]
[1718883776684,0.0842,66334.0,66333.0,0.59329056]
[1718883776795,0.012,66334.0,66333.0,0.59329056]
[1718883776999,0.0842,66334.0,66333.0,0.59329056]
[1718883777433,0.0842,66334.0,66333.0,0.63969056]
[1718883777894,0.012,66334.0,66333.0,0.63969056]
[1718883779569,0.0842,66334.0,66333.0,0.63969056]
[1718883780028,0.0842,66334.0,66333.0,0.59329056]
[1718883780421,0.0842,66334.0,66333.0,0.01659056]
[1718883780662,0.0842,66334.0,66333.0,1.01659056]
[1718883780873,0.012,66334.0,66333.0,1.58479056]
[1718883781135,0.012,66334.0,66333.0,1.63119056]
[1718883781544,0.012,66334.0,66333.0,0.9915]
[1718883781750,0.012,66334.0,66333.0,1.00532547]
[1718883782326,0.005,66334.0,66333.0,1.00532547]
[1718883782532,0.013,66334.0,66333.0,1.00532547]
[1718883782659,0.008,66334.0,66333.0,0.95892547]
[1718883782861,0.014,66334.0,66333.0,0.39072547]
[1718883783064,0.1,66337.0,66336.0,0.0464]
[1718883783267,0.02259233,66338.0,66337.0,0.2881]
[1718883783466,0.3236,66356.0,66344.0,0.0464]
[1718883783467,0.0722,66346.0,66344.0,0.0464]
[1718883783792,0.0722,66346.0,66345.0,0.01378203]
[1718883784194,0.0722,66346.0,66345.0,0.26938203]
[1718883784606,0.52,66354.0,66345.0,0.26938203]
[1718883784810,0.0822,66346.0,66345.0,0.26938203]
[1718883785602,0.0822,66346.0,66345.0,0.57358203]
[1718883785603,0.01,66346.0,66345.0,0.57358203]
[1718883786030,0.04983856,66356.0,66345.0,0.57358203]
[1718883786229,0.0722,66351.0,66345.0,0.57358203]
[1718883786472,0.009,66346.0,66345.0,0.57358203]
[1718883786848,0.021,66346.0,66345.0,0.57358203]
[1718883787486,0.012,66346.0,66345.0,0.61998203]
[1718883789185,0.012,66346.0,66345.0,0.05788104]
[1718883789595,0.021,66346.0,66345.0,0.05788104]
[1718883790629,0.021,66346.0,66345.0,0.01148104]
[1718883790830,0.021,66346.0,66339.0,0.0464]
[1718883791051,0.0722,66340.0,66339.0,0.0464]
[1718883791409,0.0722,66340.0,66336.0,0.0464]
[1718883791808,0.0722,66340.0,66339.0,0.0464]
[1718883792487,0.0722,66340.0,66336.0,0.5595]
[1718883792694,0.0722,66337.0,66336.0,0.5595]
[1718883792871,0.0722,66337.0,66336.0,0.6059]
[1718883794295,0.0722,66337.0,66334.0,0.0464]
[1718883794495,0.004,66340.0,66335.0,0.0464]
[1718883794693,0.28698553,66346.0,66335.0,0.0464]
[1718883794915,0.0722,66336.0,66335.0,0.0464]
[1718883795076,0.30698553,66346.0,66341.0,0.3588]
[1718883795077,0.1,66345.0,66341.0,0.3588]
[1718883795304,0.1,66345.0,66341.0,0.6215]
[1718883795305,0.0722,66345.0,66341.0,0.6215]
[1718883795503,0.1722,66345.0,66341.0,0.6215]
[1718883795675,0.1,66345.0,66343.0,0.0464]
[1718883796696,0.008,66345.0,66343.0,0.0464]
[1718883797044,0.011,66345.0,66343.0,0.0464]
[1718883797251,0.019,66345.0,66343.0,0.0464]
[1718883798416,0.119,66345.0,66343.0,0.0464]
[1718883798634,0.019,66345.0,66343.0,0.0464]
[1718883803813,0.019,66345.0,66344.0,0.0464]
[1718883803987,0.019,66345.0,66344.0,0.05788423]
[1718883804793,0.019,66345.0,66344.0,0.21044535]
[1718883804996,0.019,66345.0,66344.0,0.77084535]
[1718883805209,0.011,66345.0,66344.0,0.77084535]
[1718883805406,0.019,66345.0,66344.0,0.77084535]
[1718883805633,0.008,66345.0,66344.0,0.79084535]
[1718883805835,0.019,66345.0,66344.0,0.79084535]
[1718883806000,0.019,66345.0,66344.0,0.77084535]
[1718883806195,0.011,66345.0,66344.0,0.77084535]
[1718883806419,0.02207537,66346.0,66344.0,0.77084535]
[1718883806639,0.3588,66356.0,66345.0,0.0464]
[1718883806816,0.3588,66356.0,66351.0,0.0464]
[1718883806817,0.3814115,66356.0,66351.0,0.0464]
[1718883807020,0.3765685,66356.0,66351.0,0.0464]
[1718883808344,0.1177685,66356.0,66351.0,0.0464]
[1718883808514,0.1177685,66356.0,66354.0,0.5743]
[1718883808715,0.1317685,66356.0,66354.0,0.5743]
[1718883808957,0.1317685,66356.0,66355.0,0.01143342]
[1718883809358,0.1457685,66356.0,66355.0,0.01143342]
[1718883809771,0.14462758,66356.0,66353.0,0.0464]
[1718883809975,0.17262758,66356.0,66355.0,0.01143342]
[1718883810429,0.14462758,66356.0,66353.0,0.0464]
[1718883810682,0.14462758,66356.0,66354.0,0.01143787]
[1718883810865,0.15862758,66356.0,66355.0,0.0464]
[1718883811367,0.15862758,66356.0,66355.0,0.05783342]
[1718883811789,0.07747058,66356.0,66355.0,0.05783342]
[1718883813328,0.06347058,66356.0,66355.0,0.05783342]
[1718883813531,0.0366115,66356.0,66355.0,0.05783342]
[1718883813902,0.0506115,66356.0,66355.0,0.05783342]
[1718883814542,0.0366115,66356.0,66355.0,0.05783342]
[1718883814748,0.0506115,66356.0,66355.0,0.05783342]
[1718883815892,0.0506115,66356.0,66355.0,0.01143342]
[1718883816303,0.05053582,66356.0,66353.0,0.0464]
[1718883816516,0.05053582,66356.0,66355.0,0.01142441]
[1718883816724,0.05053582,66356.0,66352.0,0.0464]
[1718883817235,0.05053582,66356.0,66353.0,0.0114333]
[1718883817461,0.05053582,66356.0,66350.0,0.3769]
[1718883817462,0.03653582,66356.0,66352.0,0.0464]
[1718883817610,0.05053582,66356.0,66354.0,0.01142856]
[1718883817822,0.05139582,66356.0,66351.0,0.0464]
[1718883818037,0.05139582,66356.0,66352.0,0.05783694]
[1718883818446,0.03739582,66356.0,66352.0,0.05783694]
[1718883819132,0.05139582,66356.0,66352.0,0.05783694]
[1718883819469,0.05139582,66356.0,66352.0,0.01143694]
[1718883819674,0.06744636,66356.0,66352.0,0.01143694]
[1718883819879,0.5703,66353.0,66352.0,0.01143694]
[1718883820070,0.68635054,66353.0,66350.0,0.3769]
[1718883820282,0.13605054,66352.0,66350.0,0.3769]
[1718883820484,0.01605054,66351.0,66350.0,0.3769]
[1718883820710,0.18844064,66351.0,66350.0,0.3769]
[1718883821053,0.13605054,66351.0,66350.0,0.3769]
[1718883821261,0.70635054,66351.0,66350.0,0.3769]
[1718883821439,0.9526263,66351.0,66350.0,0.31574001]
[1718883821653,0.9526263,66351.0,66350.0,0.31011712]
[1718883821865,0.9526263,66351.0,66350.0,0.32156292]
[1718883822048,0.9636263,66351.0,66350.0,0.32156292]
[1718883822249,0.86991166,66351.0,66350.0,0.32156292]
[1718883822835,5.79099466,66351.0,66350.0,0.27256292]
[1718883823012,5.79099466,66351.0,66350.0,0.25720712]
[1718883823217,5.81091728,66351.0,66350.0,0.25720712]
[1718883823421,5.81091728,66351.0,66350.0,0.15558712]
[1718883823422,5.79991728,66351.0,66350.0,0.15558712]
[1718883823619,6.03222287,66351.0,66350.0,0.08108712]
[1718883823961,5.93222287,66351.0,66350.0,0.08108712]
[1718883824179,6.05586993,66351.0,66350.0,0.08108712]
[1718883824549,6.2176159,66351.0,66350.0,0.08108712]
[1718883824746,5.18860064,66351.0,66350.0,0.07108801]
[1718883824946,2.28591764,66351.0,66350.0,0.06108959]
[1718883825176,2.34991764,66351.0,66350.0,0.06108959]
[1718883825389,1.49791764,66351.0,66350.0,0.06108959]
[1718883825587,1.23739943,66351.0,66350.0,0.06108959]
[1718883825758,1.21739943,66351.0,66350.0,0.06108959]
[1718883825961,1.08539943,66351.0,66350.0,0.06108959]
[1718883826161,0.93765346,66351.0,66350.0,0.06108959]
[1718883826373,0.75725346,66351.0,66350.0,0.06108959]
[1718883826698,0.74645346,66351.0,66350.0,0.06108959]
[1718883827316,0.36025346,66351.0,66350.0,0.06108959]
[1718883828511,0.10097482,66351.0,66350.0,0.06108959]
[1718883830562,0.91243594,66351.0,66350.0,0.01146718]
[1718883830777,1.2702021,66351.0,66350.0,0.01146718]
[1718883830925,6.0736851,66351.0,66350.0,0.01146718]
[1718883831138,6.07365721,66351.0,66350.0,0.01146718]
[1718883831619,6.24498573,66351.0,66350.0,0.01146718]
[1718883831830,0.2543,66346.0,66332.0,0.009504]
[1718883832001,0.15254866,66336.0,66332.0,0.009504]
[1718883832204,0.1804,66334.0,66332.0,0.009504]
[1718883832453,0.43294866,66334.0,66332.0,0.009504]
[1718883832651,0.73994866,66334.0,66332.0,0.009504]
[1718883832927,0.62294866,66334.0,66332.0,0.009504]
[1718883833124,0.4704,66334.0,66332.0,0.009504]
[1718883833326,0.2804,66334.0,66333.0,0.001946]
[1718883833504,5.338183,66334.0,66333.0,0.001946]
[1718883833707,1.0504,66334.0,66333.0,0.000946]
[1718883833887,1.0504,66334.0,66333.0,0.001946]
[1718883834089,1.0504,66334.0,66333.0,0.002946]
[1718883834514,1.0504,66334.0,66333.0,0.001946]
[1718883834938,1.0504,66334.0,66333.0,0.002946]
[1718883835275,1.0584,66334.0,66333.0,0.003946]
[1718883835616,0.1,66334.0,66333.0,0.048346]
[1718883835821,0.1,66335.0,66334.0,0.0464]
[1718883836022,0.1,66337.0,66336.0,0.0464]
[1718883836223,0.1,66340.0,66336.0,0.01152139]
[1718883836422,0.25254866,66340.0,66336.0,0.0464]
[1718883836742,0.65254866,66339.0,66337.0,0.01151694]
[1718883836944,0.1,66338.0,66337.0,0.01151694]
[1718883837932,0.1,66339.0,66334.0,0.001]
[1718883838127,0.014,66338.0,66337.0,0.01252003]
[1718883838332,0.014,66338.0,66332.0,0.009504]
[1718883838333,0.014,66338.0,66320.0,0.009504]
[1718883838334,0.6107,66321.0,66320.0,0.009504]
[1718883838591,0.05,66319.0,66312.0,0.009504]
[1718883838744,0.6607,66321.0,66307.0,0.009504]
[1718883838745,0.1,66320.0,66307.0,0.055904]
[1718883838947,0.1,66320.0,66310.0,0.055904]
[1718883838948,0.01352579,66319.0,66310.0,0.055904]
[1718883839138,0.1,66320.0,66310.0,0.055904]
[1718883839139,0.1804,66316.0,66310.0,0.055904]
[1718883839343,0.1,66315.0,66310.0,0.055904]
[1718883839544,4.547,66315.0,66310.0,0.055904]
[1718883839755,0.54879947,66314.0,66310.0,0.009504]
[1718883839954,0.1,66313.0,66310.0,0.056904]
[1718883840149,0.11352579,66313.0,66310.0,0.056904]
[1718883840452,0.5,66312.0,66310.0,0.055904]
[1718883840657,0.1,66311.0,66310.0,0.056904]
[1718883841347,0.1,66311.0,66310.0,0.076904]
[1718883841586,0.1,66311.0,66310.0,0.635604]
[1718883841800,0.014,66315.0,66314.0,0.02]
[1718883842222,0.014,66315.0,66314.0,0.0664]
[1718883842853,0.1,66317.0,66310.0,0.569204]
[1718883842854,0.1,66317.0,66316.0,0.0664]
[1718883843066,0.1804,66330.0,66316.0,0.0664]
[1718883843067,0.13535991,66326.0,66316.0,0.0664]
[1718883843260,0.13535991,66327.0,66323.0,0.0524]
[1718883843381,0.15498588,66333.0,66319.0,0.0464]
[1718883843382,0.31575991,66325.0,66319.0,0.0464]
[1718883843584,0.23535991,66324.0,66319.0,0.0464]
[1718883843782,0.23535991,66324.0,66319.0,0.0324]
[1718883844048,0.13535991,66321.0,66315.0,0.0324]
[1718883844193,0.1,66320.0,66316.0,0.00812788]
[1718883844546,0.1,66320.0,66315.0,0.0324]
[1718883844547,0.1,66320.0,66315.0,0.02652788]
[1718883844749,0.1,66320.0,66315.0,0.03252788]
[1718883844958,0.1,66320.0,66316.0,0.01015845]
[1718883845297,0.1,66320.0,66310.0,0.320304]
[1718883845298,0.1804,66320.0,66310.0,0.320304]
[1718883845525,0.1804,66316.0,66310.0,0.009504]
[1718883845731,0.1,66315.0,66311.0,0.01019183]
[1718883845936,4.903483,66315.0,66310.0,0.009504]
[1718883846157,0.65103236,66314.0,66310.0,0.009504]
[1718883846362,0.1,66313.0,66310.0,0.009504]
[1718883846663,0.1804,66311.0,66310.0,0.009504]
[1718883847053,0.2940334,66311.0,66310.0,0.010504]
[1718883847249,5.13295132,66311.0,66310.0,0.010504]
[1718883847474,5.28550546,66311.0,66310.0,0.010504]
[1718883847642,5.27035028,66311.0,66310.0,0.010504]
[1718883847844,5.27035028,66311.0,66310.0,0.009504]
[1718883848097,0.46686728,66311.0,66310.0,0.009504]
[1718883848299,0.45323388,66311.0,66310.0,0.009504]
[1718883848648,0.41779896,66311.0,66310.0,0.009504]
[1718883849358,0.2804,66311.0,66310.0,0.009504]
[1718883850658,0.2864,66311.0,66310.0,0.010504]
[1718883851688,0.2864,66311.0,66310.0,0.011504]
[1718883852064,0.106,66311.0,66310.0,0.011504]
[1718883852268,0.1864,66311.0,66310.0,0.011504]
[1718883852467,0.2864,66311.0,66310.0,0.011504]
[1718883852659,1.2250334,66311.0,66310.0,0.011504]
[1718883852857,1.34962686,66311.0,66310.0,0.011504]
[1718883853060,0.42462686,66311.0,66310.0,0.011504]
[1718883853304,5.089883,66311.0,66310.0,0.011504]
[1718883853502,0.3000334,66311.0,66310.0,0.011504]
[1718883853704,0.5422,66311.0,66310.0,0.011504]
[1718883853899,0.2864,66311.0,66310.0,0.011504]
[1718883854400,0.3000334,66311.0,66310.0,0.011504]
[1718883854531,0.1196334,66311.0,66310.0,0.011504]
[1718883854733,5.1035164,66311.0,66310.0,0.011504]
[1718883855272,5.25607054,66311.0,66310.0,0.011504]
[1718883855915,5.29150546,66311.0,66310.0,0.011504]
[1718883856157,5.13895132,66311.0,66310.0,0.011504]
[1718883856364,5.26037267,66311.0,66310.0,0.011504]
[1718883858464,4.25288967,66311.0,66310.0,0.011504]
[1718883858655,3.25788967,66311.0,66310.0,0.011504]
[1718883859061,3.25788967,66311.0,66310.0,0.594904]
[1718883859062,0.27648967,66311.0,66310.0,0.594904]
[1718883859363,0.22891897,66311.0,66310.0,0.60200876]
[1718883859542,0.22891897,66311.0,66310.0,0.62853664]
[1718883859755,0.106,66311.0,66310.0,0.62853664]
[1718883860090,0.1,66311.0,66310.0,0.62653664]
[1718883860743,0.11,66311.0,66310.0,0.62753664]
[1718883861142,0.01,66311.0,66310.0,0.62753664]
[1718883861786,0.1904,66311.0,66310.0,0.01760876]
[1718883861918,0.2904,66311.0,66310.0,0.01760876]
[1718883862116,0.2904,66311.0,66310.0,0.010504]
[1718883862117,0.37162003,66311.0,66310.0,0.010504]
[1718883862305,0.37162003,66311.0,66310.0,0.01760676]
[1718883862306,0.2904,66311.0,66310.0,0.01760676]
[1718883863171,0.2904,66311.0,66310.0,0.010504]
[1718883863887,5.10672422,66311.0,66310.0,0.010504]
[1718883864463,3.94824122,66311.0,66310.0,0.010504]
[1718883864879,4.10080234,66311.0,66310.0,0.010504]
[1718883865103,0.45580234,66311.0,66310.0,0.010504]
[1718883865310,5.24644412,66311.0,66310.0,0.010504]
[1718883865510,0.45580234,66311.0,66310.0,0.010504]
[1718883865749,5.25928534,66311.0,66310.0,0.010504]
[1718883866351,3.12299367,66311.0,66310.0,0.010504]
[1718883866675,0.47139367,66311.0,66310.0,0.010504]
[1718883866901,0.45855245,66311.0,66310.0,0.01760878]
[1718883867939,0.300904,66311.0,66310.0,0.02360878]
[1718883868596,0.300904,66311.0,66310.0,0.05013666]
[1718883868597,0.020504,66311.0,66310.0,0.05013666]
[1718883868803,0.020504,66311.0,66310.0,0.63393666]
[1718883869007,0.01,66311.0,66310.0,0.63393666]
[1718883869435,0.02180031,66315.0,66314.0,0.02652788]
[1718883869645,0.02180031,66315.0,66314.0,0.03252788]
[1718883869853,0.060451,66316.0,66315.0,0.02652788]
[1718883870060,0.060451,66316.0,66315.0,0.03252788]
[1718883870262,0.060451,66316.0,66315.0,0.04022322]
[1718883870722,0.06026951,66316.0,66315.0,0.04022322]
[1718883871352,0.1,66317.0,66316.0,0.61632788]
[1718883871558,0.1804,66326.0,66316.0,0.61632788]
[1718883871559,0.1804,66326.0,66321.0,0.02652788]
[1718883871785,0.1804,66326.0,66325.0,0.006]
[1718883872255,0.240844,66326.0,66325.0,0.006]
[1718883872481,0.060444,66326.0,66325.0,0.01364621]
[1718883872681,0.240844,66326.0,66325.0,0.006]
[1718883872999,0.340844,66326.0,66325.0,0.006]
[1718883873967,0.340844,66326.0,66324.0,0.006]
[1718883874232,0.1,66325.0,66324.0,0.006]
[1718883874844,0.1,66325.0,66324.0,0.61632788]
[1718883875283,0.08238874,66326.0,66325.0,0.02652788]
[1718883875680,0.08238874,66326.0,66325.0,0.04020971]
[1718883876051,0.02194474,66326.0,66325.0,0.04020971]
[1718883876258,0.1,66333.0,66330.0,0.02652788]
[1718883876662,0.1,66333.0,66331.0,0.01365514]
[1718883876891,0.06044,66332.0,66331.0,0.01365514]
[1718883877143,0.06044,66332.0,66331.0,0.006]
[1718883877842,0.06044,66332.0,66330.0,0.02652788]
[1718883878413,0.07244,66332.0,66331.0,0.01014347]
[1718883878854,0.07244,66332.0,66331.0,0.002]
[1718883879581,0.07244,66332.0,66331.0,0.006]
[1718883879582,0.06044,66332.0,66331.0,0.006]
[1718883879828,0.06044,66332.0,66331.0,0.03252788]
[1718883880051,0.012,66332.0,66331.0,0.03252788]
[1718883880526,0.02209781,66334.0,66331.0,0.03252788]
[1718883880527,0.02209781,66334.0,66333.0,0.03252788]
[1718883880748,0.02209781,66334.0,66333.0,0.60402788]
[1718883880972,0.05462581,66334.0,66333.0,0.60402788]
[1718883881201,0.05462581,66334.0,66333.0,0.61216098]
[1718883882581,0.05462581,66334.0,66333.0,0.0081331]
[1718883883012,0.05462581,66334.0,66330.0,0.02052788]
[1718883883207,0.18994133,66334.0,66330.0,0.02052788]
[1718883883468,0.05462581,66334.0,66333.0,0.001]
[1718883883844,0.05462581,66334.0,66330.0,0.02052788]
[1718883884253,0.05462581,66334.0,66331.0,0.008142]
[1718883884749,0.05462581,66334.0,66330.0,0.02052788]
[1718883884912,0.05462581,66334.0,66333.0,0.001]
[1718883885320,0.05462581,66334.0,66333.0,0.02152788]
[1718883885517,0.05462581,66334.0,66333.0,0.59912788]
[1718883885719,0.05462581,66334.0,66333.0,0.60726098]
[1718883886373,0.05462581,66334.0,66333.0,0.60626098]
[1718883886766,0.032528,66334.0,66333.0,0.60626098]
[1718883886927,0.1,66341.0,66339.0,0.02052788]
[1718883887146,0.1,66341.0,66340.0,0.00809732]
[1718883887558,0.23531552,66345.0,66339.0,0.02052788]
[1718883887757,0.06043,66340.0,66339.0,0.02052788]
[1718883888193,0.06043,66340.0,66339.0,0.02152788]
[1718883889073,0.1,66345.0,66344.0,0.02052788]
[1718883889271,0.0217584,66346.0,66345.0,0.02052788]
[1718883889511,0.1,66349.0,66345.0,0.02052788]
[1718883889715,0.1,66349.0,66346.0,0.02052788]
[1718883890339,0.060427,66348.0,66346.0,0.02052788]
[1718883890884,0.060427,66348.0,66346.0,0.02152788]
[1718883891061,0.060427,66348.0,66346.0,0.001]
[1718883891700,0.060427,66348.0,66346.0,0.002]
[1718883892936,0.15256112,66347.0,66346.0,0.002]
[1718883893147,4.23636112,66347.0,66346.0,0.001]
[1718883893356,4.23636112,66347.0,66346.0,0.002]
[1718883893357,4.34933491,66347.0,66346.0,0.002]
[1718883893563,4.33636112,66347.0,66346.0,0.002]
[1718883893782,1.10559446,66347.0,66346.0,0.002]
[1718883893993,1.09261907,66347.0,66346.0,0.001]
[1718883894244,0.02,66344.0,66330.0,0.02052788]
[1718883894463,0.1804,66331.0,66329.0,0.69015389]
[1718883894707,0.1,66330.0,66329.0,0.38945389]
[1718883894936,0.1,66330.0,66329.0,0.40998177]
[1718883895140,0.1,66330.0,66329.0,0.38945389]
[1718883895358,0.1,66330.0,66328.0,0.02052788]
[1718883895573,0.1,66330.0,66326.0,0.02052788]
[1718883895808,0.1,66330.0,66328.0,0.02052788]
[1718883896188,0.1,66330.0,66329.0,0.00813674]
[1718883897250,0.1,66330.0,66329.0,0.01113674]
[1718883897674,0.1,66330.0,66329.0,0.01813674]
[1718883897878,0.02,66342.0,66329.0,0.01813674]
[1718883897879,0.1804,66332.0,66331.0,0.02052788]
[1718883898092,0.2804,66332.0,66331.0,0.02052788]
[1718883898350,0.1,66332.0,66331.0,0.02865573]
[1718883898557,0.1,66332.0,66331.0,0.60715573]
[1718883899201,0.1804,66337.0,66334.0,0.02052788]
[1718883899202,0.1,66336.0,66334.0,0.02052788]
[1718883899630,0.1,66336.0,66335.0,0.00811005]
[1718883900056,0.1,66336.0,66335.0,0.02863793]
[1718883900882,0.1,66341.0,66339.0,0.02052788]
[1718883901509,0.1,66341.0,66335.0,0.02052788]
[1718883901721,0.1804,66336.0,66335.0,0.02052788]
[1718883901932,0.2804,66336.0,66335.0,0.02052788]
[1718883905977,0.1,66336.0,66335.0,0.02052788]
[1718883906209,0.1804,66338.0,66335.0,0.02052788]
[1718883906210,0.1,66337.0,66335.0,0.02052788]
[1718883907054,0.1804,66339.0,66335.0,0.02052788]
[1718883907285,0.1,66338.0,66335.0,0.02052788]
[1718883908890,0.1,66338.0,66335.0,0.02152788]
[1718883909442,0.1,66338.0,66337.0,0.02052788]
[1718883909847,0.02181596,66342.0,66337.0,0.02052788]
[1718883909848,0.1,66341.0,66340.0,0.02052788]
[1718883910053,0.02181596,66342.0,66341.0,0.02052788]
[1718883910285,0.1804,66347.0,66341.0,0.02052788]
[1718883910286,0.1,66346.0,66341.0,0.02052788]
[1718883910490,0.1804,66342.0,66341.0,0.0085863]
[1718883910696,5.11890798,66342.0,66341.0,0.0085863]
[1718883910898,5.11890798,66342.0,66340.0,0.02052788]
[1718883910899,0.1,66342.0,66340.0,0.02052788]
[1718883911104,0.1,66342.0,66341.0,0.61202788]
[1718883911510,0.1,66342.0,66341.0,0.62061418]
[1718883911707,0.1,66342.0,66341.0,0.62161418]
[1718883911914,0.1,66342.0,66341.0,0.62261418]
[1718883912120,0.02097611,66347.0,66341.0,0.62261418]
[1718883912433,0.00086,66351.0,66348.0,0.02052788]
[1718883912635,0.060422,66349.0,66348.0,0.02052788]
[1718883913176,0.15192412,66359.0,66348.0,0.02052788]
[1718883913562,0.240823,66355.0,66348.0,0.02052788]
[1718883913760,0.2664,66354.0,66348.0,0.02052788]
[1718883914425,0.2664,66354.0,66348.0,0.02152788]
[1718883915300,0.1,66353.0,66348.0,0.02152788]
[1718883915709,0.1,66354.0,66348.0,0.02252788]
[1718883916746,0.240823,66355.0,66348.0,0.02152788]
[1718883916949,0.1,66354.0,66348.0,0.02152788]
[1718883917154,0.1,66354.0,66353.0,0.02052788]
[1718883917355,0.1,66354.0,66353.0,0.02905557]
[1718883917983,0.00086,66355.0,66354.0,0.02052788]
[1718883918336,0.00086,66355.0,66354.0,0.740589]
[1718883918555,0.00086,66355.0,66354.0,0.74910875]
[1718883920316,0.00086,66355.0,66354.0,0.00851975]
[1718883920541,0.00086,66355.0,66354.0,0.003]
[1718883920715,0.10086,66355.0,66354.0,0.003]
[1718883921488,0.10086,66355.0,66345.0,0.3039]
[1718883921696,0.10086,66355.0,66344.0,0.02052788]
[1718883921697,0.1804,66347.0,66344.0,0.02052788]
[1718883921898,0.1804,66347.0,66346.0,0.00854683]
[1718883922062,0.2804,66347.0,66345.0,0.00855365]
[1718883922268,0.1,66346.0,66338.0,0.40998177]
[1718883922585,0.1804,66340.0,66338.0,0.38945389]
[1718883922793,0.1804,66340.0,66335.0,0.81202788]
[1718883922794,0.1804,66340.0,66335.0,0.02052788]
[1718883923027,0.1,66339.0,66335.0,0.02052788]
[1718883924252,0.1,66339.0,66335.0,0.02752788]
[1718883924581,0.13541766,66336.0,66335.0,0.007]
[1718883925065,0.1,66336.0,66335.0,0.007]
[1718883925265,0.1,66336.0,66335.0,0.009]
[1718883925650,0.1,66336.0,66335.0,0.007]
[1718883926256,0.25234487,66339.0,66335.0,0.007]
[1718883926462,0.25234487,66339.0,66329.0,0.02052788]
[1718883926659,0.1804,66334.0,66329.0,0.02052788]
[1718883926859,0.2804,66334.0,66326.0,0.38945389]
[1718883927373,0.84,66334.0,66326.0,0.38945389]
[1718883927575,0.84,66334.0,66333.0,0.00088018]
[1718883927892,0.84,66334.0,66333.0,0.00188018]
[1718883928292,5.643483,66334.0,66333.0,0.00188018]
[1718883928499,4.011,66334.0,66333.0,0.00188018]
[1718883928701,4.385,66334.0,66333.0,0.00188018]
[1718883929141,4.291,66334.0,66333.0,0.00188018]
[1718883929351,4.321442,66334.0,66333.0,0.00188018]
[1718883930194,4.321442,66334.0,66333.0,0.00088018]
[1718883930401,2.183442,66334.0,66333.0,0.00088018]
[1718883930614,2.183442,66334.0,66333.0,0.001]
[1718883930615,2.29400312,66334.0,66333.0,0.001]
[1718883930826,2.44634799,66334.0,66333.0,0.001]
[1718883931027,2.29400312,66334.0,66333.0,0.001]
[1718883931276,2.31400312,66334.0,66333.0,0.001]
[1718883931917,0.02,66332.0,66319.0,0.81202788]
[1718883932254,0.31576955,66326.0,66320.0,0.00868369]
[1718883932432,0.1,66325.0,66320.0,0.00868369]
[1718883932863,0.13534311,66324.0,66320.0,0.00868369]
[1718883933091,0.23535164,66323.0,66314.0,0.02052788]
[1718883933258,0.2804,66325.0,66314.0,0.02052788]
[1718883933466,0.2804,66325.0,66317.0,0.00870539]
[1718883933725,0.2804,66325.0,66320.0,0.003]
[1718883934983,1.565,66324.0,66316.0,0.000946]
[1718883935182,0.1804,66319.0,66317.0,0.00870539]
[1718883935386,0.1,66318.0,66317.0,0.00870539]
[1718883936147,0.925,66318.0,66317.0,0.00870539]
[1718883936552,0.5,66317.0,66309.0,0.3319]
[1718883936722,0.1,66316.0,66309.0,0.3319]
[1718883936923,0.1,66316.0,66311.0,0.00873209]
[1718883937917,0.5,66317.0,66311.0,0.00873209]